Cogmind - Beta 15 *** ADVENTURER MODE // 2025.06.30 @ 14:59:19 Player: Gentle Jesus Result: Self-destructed Performance ------------- Evolutions (3) 1500 Regions Visited (12) 2400 Robots Destroyed (50) 250 Value Destroyed (1625) 1625 Prototype IDs (36) 720 Alien Tech Used (1) 200 Bonus (459) 459 TOTAL SCORE: 7154 Bonus ------- Follower Combat Kills 14 Aligned with FarCom 300 Met Data Miner 300 Friendly Fire -155 Cogmind --------- Core Integrity 300/700 Matter 300/300 Energy 18/100 System Corruption 0% Temperature Cool (0) Movement Core (1400) Ox27 Location -6/Proximity Caves Parts ------- > --- POWER (1) -------- (None) > --- PROPULSION (5) --- (None) > --- UTILITY (6) ------ Huge Storage Unit Improved Signal Interpreter Propulsion Shielding Propulsion Shielding > --- WEAPON (2) ------- (None) > --- INVENTORY (25) --- Ion Engine Improved Ion Engine Light Nuclear Core Gravmag System Large Matter Pod (150) Seismic Detector Hacking Suite XL Autogun Array Peak State ------------ > --- POWER ------------ Improved Ion Engine > --- PROPULSION ------- Wheel Wheel Wheel Wheel > --- UTILITY ---------- Huge Storage Unit Improved Sensor Array Improved Signal Interpreter Advanced Terrain Scan Processor Thief Drone Bay > --- WEAPON ----------- Heavy Ion Cannon Heavy Ion Cannon > --- INVENTORY -------- Ion Engine Deuterium Engine Light Nuclear Core Improved Heat Sink Medium Matter Pod Seismic Detector Propulsion Shielding Propulsion Shielding Propulsion Shielding Light Armor Plating EM Pulse Cannon Heavy Ion Cannon XL Autogun Array Rocket Launcher [Rating: 38] Favorites ----------- Power Ion Engine Engine Ion Engine Power Core Neutrino Core Propulsion Wheel Treads Medium Treads Leg Carbon-fiber Leg Wheel Wheel Hover Unit Improved Hover Unit Utility Huge Storage Unit Device Improved Sensor Array Storage Huge Storage Unit Processor Improved Signal Interpreter Protection Propulsion Shielding Weapon Heavy Ion Cannon Energy Gun Small Laser Energy Cannon Heavy Ion Cannon Ballistic Cannon Advanced Assault Cannon Launcher Rocket Launcher Special Weapon Plasma Cutter Build | -11 -10 -10 -9 -9 -9 -8 -8 -7 -7 -7 -7 -6 ------- Run | Yrd Mat Min Mat Min Exi Min Mat Fac Low Low Dat Pro Slots Evolved 6 | . . . 2 . . . 2 2 . . . . Power . | . . . . . . . . . . . . . Propulsion 3 | . . . 1 . . . 1 1 . . . . Utility 3 | . . . 1 . . . 1 1 . . . . Weapon . | . . . . . . . . . . . . . Parts Attached 42 | 6 4 2 3 4 . . 12 1 . 3 . 7 Power 7 | 1 1 . . . . . 2 . . 1 . 2 Engine 5 | 1 1 . . . . . 2 . . . . 1 Core 2 | . . . . . . . . . . 1 . 1 Reactor . | . . . . . . . . . . . . . Propulsion 10 | 2 . . 1 2 . . 2 . . . . 3 Treads 1 | . . . . . . . . . . . . 1 Leg 1 | . . . . . . . . . . . . 1 Wheel 7 | 2 . . 1 2 . . 2 . . . . . Hover 1 | . . . . . . . . . . . . 1 Flight . | . . . . . . . . . . . . . Utility 15 | 1 3 2 . 1 . . 5 1 . 1 . 1 Device 6 | . 3 . . 1 . . 2 . . . . . Storage 3 | 1 . 2 . . . . . . . . . . Processor 2 | . . . . . . . 2 . . . . . Hackware . | . . . . . . . . . . . . . Protection 4 | . . . . . . . 1 1 . 1 . 1 Artifact . | . . . . . . . . . . . . . Weapon 10 | 2 . . 2 1 . . 3 . . 1 . 1 Energy Gun 3 | 2 . . 1 . . . . . . . . . Energy Cannon 3 | . . . . . . . 2 . . . . 1 Ballistic Gun . | . . . . . . . . . . . . . Ballistic Cannon 1 | . . . . . . . . . . 1 . . Launcher 1 | . . . . 1 . . . . . . . . Special Weapon 2 | . . . 1 . . . 1 . . . . . Impact Weapon . | . . . . . . . . . . . . . Slashing Weapon . | . . . . . . . . . . . . . Piercing Weapon . | . . . . . . . . . . . . . Special Melee Weapon . | . . . . . . . . . . . . . Unidentified Prototypes 2 | . . . . 1 . . . . . 1 . . Parts Lost 27 | . 2 . 3 . . . 5 . 2 1 . 14 Power 5 | . 1 . . . . . 1 . . . . 3 Propulsion 9 | . . . 2 . . . 1 . 2 . . 4 Utility 5 | . 1 . . . . . 1 . . . . 3 Weapon 8 | . . . 1 . . . 2 . . 1 . 4 Highest Loss Streak 6 | . 1 . 3 . . . 3 . 2 1 . 6 To Critical Strikes . | . . . . . . . . . . . . . Average Backups 11 | 1 5 8 7 10 12 13 14 13 13 16 16 12 Power 2 | 1 . . . . . . 1 3 3 4 5 3 Propulsion 1 | . 1 3 2 . 1 . . . . 2 3 2 Utility 5 | . 2 4 3 6 7 7 8 6 5 5 5 3 Weapon 2 | . . 1 1 2 3 4 4 4 4 3 3 2 Tool/Special . | . . . . . . . . . . . . . Unused Backups 14 | . 1 . . . . 3 2 3 . . . 5 Power 1 | . . . . . . . . . . . . 1 Propulsion 4 | . . . . . . 3 . . . . . 1 Utility 5 | . 1 . . . . . . 2 . . . 2 Weapon 4 | . . . . . . . 2 1 . . . 1 Tool/Special . | . . . . . . . . . . . . . Average Slot Usage (%) 85 | . 95 100 96 98 100 91 95 91 78 75 78 64 Engine 6 | . 10 14 11 11 11 11 9 7 7 1 . . Core 2 | . . . . . . . . . . 5 7 6 Leg 1 | . . . . . . . . . . . . 6 Wheel 21 | . 28 28 30 32 33 33 33 30 18 14 14 . Device 14 | . 13 14 22 22 22 22 14 10 15 14 14 6 Storage 9 | . 14 14 11 11 11 11 9 7 7 7 7 7 Processor 5 | . . . . . . . 11 13 7 7 7 7 Protection 6 | . . . . . . . . 4 7 7 14 20 Energy Gun 7 | . 28 28 17 11 11 11 . . . . . . Energy Cannon 5 | . . . . . . . 12 15 13 14 7 1 Ballistic Cannon 1 | . . . . . . . . . . . 7 6 Launcher 1 | . . . . 10 11 3 . . . . . . Peak Build Rating 38 | 6 9 8 13 20 23 24 31 38 30 36 35 35 Average Rating 23 | 4 8 8 11 19 21 22 28 33 28 33 35 28 On Entrance 19 | . 6 8 8 10 20 23 22 31 30 29 35 35 Naked Turns . | . . . . . . . . . . . . . Heaviest Build 114 | 11 14 89 91 97 97 97 105 108 106 114 114 114 Greatest Support 46 | 32 32 32 42 36 36 36 46 40 40 20 20 28 Greatest Overweight (x) 11 | . . 2 5 2 2 2 3 2 5 5 5 11 Average Overweight (x) 2 | . . . 2 2 2 2 2 2 4 5 5 6 Largest Inventory Capacity 25 | 8 8 25 25 25 25 25 25 25 25 25 25 25 Average Capacity 22 | 6 8 9 25 25 25 25 25 25 25 25 25 25 Most Carried 21 | 5 8 9 11 12 16 18 20 18 18 21 19 19 Average Carried 14 | 1 5 8 7 10 13 17 17 16 16 19 19 15 Final Capacity 25 | 8 8 25 25 25 25 25 25 25 25 25 25 25 Final Carried 19 | 4 8 8 11 12 16 18 19 15 17 19 19 11 Class Distribution -------------------- 78% | Mutant 13% | Skirmisher 4% | Scavenger-Mutant Dominant Class ---------------- Mutant | -10/Materials Mutant | -10/Mines Mutant | -9/Materials Mutant | -9/Mines Mutant | -9/Exiles Mutant | -8/Mines Skirmisher | -8/Materials Skirmisher | -7/Factory Mutant | -7/Lower Caves Mutant | -7/Lower Caves Mutant | -7/Data Miner Mutant | -6/Proximity Caves Resources | -11 -10 -10 -9 -9 -9 -8 -8 -7 -7 -7 -7 -6 ----------- Run | Yrd Mat Min Mat Min Exi Min Mat Fac Low Low Dat Pro Matter Collected 1291 | 260 20 140 50 33 . 62 172 143 131 36 . 244 Remotely . | . . . . . . . . . . . . . Salvage Created 1501 | 29 300 53 171 . . 181 240 42 113 149 . 223 Parts 83 | 7 10 7 19 . . 6 11 1 8 6 . 8 Haulers Intercepted . | . . . . . . . . . . . . . Recyclers Shooed 2 | . . . . . . 1 . 1 . . . . Parts Field Recycled . | . . . . . . . . . . . . . Retrieved Matter . | . . . . . . . . . . . . . Parts Self-Destructed 25 | . . . . . . . . . 7 11 . 7 Prevented . | . . . . . . . . . . . . . Kills | -11 -10 -10 -9 -9 -9 -8 -8 -7 -7 -7 -7 -6 ------- Run | Yrd Mat Min Mat Min Exi Min Mat Fac Low Low Dat Pro Combat Hostiles Destroyed 39 | . 7 3 2 . . 5 4 . 7 5 . 6 Guns 12 | . 6 3 2 . . 1 . . . . . . Cannons 16 | . . . . . . . 3 . 4 3 . 6 AOE 10 | . . . . . . 4 1 . 3 2 . . Classes Destroyed 11 | 1 1 1 3 . . 1 2 . . 2 . . Worker 3 | . . . . . . . 1 2 . . . . Builder 1 | . . . 1 . . . . . . . . . Tunneler 2 | 2 . . . . . . . . . . . . Watcher 4 | . . . 2 . . . 2 . . . . . Swarmer 15 | . . 3 . . . . . . 7 4 . 1 Grunt 15 | . 7 . . . . 5 . . . . . 3 Sentry 5 | . . . 2 . . . 3 . . . . . Hunter 3 | . . . . . . . 1 . . . . 2 Programmer 1 | . . . . . . . . . . 1 . . Zionite 1 | . . . . . . 1 . . . . . . Decomposer 1 | . . . . . . . . . 1 . . . Samaritan 1 | . . . . . . . . . . 1 . . Best Kill Streak 5 | 2 3 3 2 . . 4 3 1 5 3 . 3 Combat Bots Only 4 | . 3 3 1 . . 4 1 . 4 3 . 3 Max Kills in Single Turn 3 | 1 1 1 1 . . 2 1 1 3 2 . 1 Gunslinging . | . . . . . . . . . . . . . Exploded 3 | . . . . . . 1 1 . 3 2 . . Melee . | . . . . . . . . . . . . . Uniques/NPCs Destroyed . | . . . . . . . . . . . . . Combat | -11 -10 -10 -9 -9 -9 -8 -8 -7 -7 -7 -7 -6 -------- Run | Yrd Mat Min Mat Min Exi Min Mat Fac Low Low Dat Pro Hostile Shots Fired 299 | . 36 8 24 . . 11 41 . 19 29 . 131 Missed 85 | . 7 1 11 . . 5 15 . 5 10 . 31 Hits 214 | . 29 7 13 . . 6 26 . 14 19 . 100 Projectile 214 | . 29 7 13 . . 6 26 . 14 19 . 100 Critical Strikes 4 | . 1 . . . . 1 1 . . . . 1 Damage Taken 2704 | . 285 45 207 . . 78 360 . 190 218 . 1321 Core 622 | . 62 23 32 . . 14 91 . 36 43 . 321 Absorbed by Shields . | . . . . . . . . . . . . . Redirected to Shielding 92 | . . . . . . . 3 . 16 7 . 66 Ignored by Resistances 784 | . 90 15 59 . . 22 103 . 56 61 . 378 Regen/Repaired (Parts) 23 | . . . 23 . . . . . . . . . Core Remaining (%) 84 | 100 . 66 . . . 88 83 . . . . . Volleys Fired 145 | 3 26 4 19 . . 9 21 9 8 13 . 33 Largest 2 | 2 2 2 2 . . 1 2 2 2 2 . 2 Hottest 130 | 90 90 90 100 . . 45 130 130 130 130 . 105 Shots Fired 233 | 6 52 8 20 . . 9 29 15 15 25 . 54 Gun 83 | 6 52 8 12 . . 4 1 . . . . . Cannon 119 | . . . . . . . 15 15 11 24 . 54 Launcher 17 | . . . . . . 5 7 . 4 1 . . Special 14 | . . . 8 . . . 6 . . . . . Kinetic 29 | . . . . . . . . . . 2 . 27 Thermal 171 | 6 52 8 9 . . . 21 15 11 22 . 27 Explosive 17 | . . . . . . 5 7 . 4 1 . . Electromagnetic 16 | . . . 11 . . 4 1 . . . . . Robot Hit Streak 19 | 5 14 4 14 . . 15 19 12 6 10 . 18 Robot Miss Streak 2 | . 2 1 1 . . 1 1 1 2 1 . 2 Penetration Max . | . . . . . . . . . . . . . Secondary Targets 1 | . . 1 . . . . . . . . . . Max Gunslinging Chain 1 | . . 1 . . . . . . . . . . Shots Hit Robots 163 | 5 42 5 10 . . 7 20 9 7 15 . 43 Core Hits 88 | 2 16 3 10 . . 16 11 1 9 7 . 13 Critical Kills . | . . . . . . . . . . . . . Critical Parts Destroyed . | . . . . . . . . . . . . . Critical Strikes 4 | . 3 . . . . . . . . . . 1 Burn 3 | . 3 . . . . . . . . . . . Blast 1 | . . . . . . . . . . . . 1 Melee Attacks . | . . . . . . . . . . . . . Impact . | . . . . . . . . . . . . . Slashing . | . . . . . . . . . . . . . Piercing . | . . . . . . . . . . . . . Sneak Attacks . | . . . . . . . . . . . . . Combat Hostiles . | . . . . . . . . . . . . . Follow-up Attacks . | . . . . . . . . . . . . . Damage Inflicted 4307 | 59 498 58 291 . . 544 456 273 475 556 . 1097 Guns 864 | 59 498 58 171 . . 78 . . . . . . Cannons 2204 | . . . . . . . 268 273 159 407 . 1097 Explosions 1195 | . . . 120 . . 466 144 . 316 149 . . Melee . | . . . . . . . . . . . . . Ramming . | . . . . . . . . . . . . . Kinetic 499 | . . . . . . . . . . . . 499 Thermal 2496 | 59 498 58 132 . . . 312 273 159 407 . 598 Explosive 1075 | . . . . . . 466 144 . 316 149 . . Electromagnetic 237 | . . . 159 . . 78 . . . . . . Impact . | . . . . . . . . . . . . . Slashing . | . . . . . . . . . . . . . Piercing . | . . . . . . . . . . . . . Highest Corruption . | . . . . . . . . . . . . . Average Corruption . | . . . . . . . . . . . . . Corruption Purged . | . . . . . . . . . . . . . Corruption Blocked . | . . . . . . . . . . . . . Overload Shots . | . . . . . . . . . . . . . Overflow Damage 125 | . . . . . . . . 15 28 57 . 25 Projectiles 97 | . . . . . . . . 15 . 57 . 25 Explosions 28 | . . . . . . . . . 28 . . . Melee . | . . . . . . . . . . . . . Knockbacks 8 | . . . . . . . . . . . . 8 Impact . | . . . . . . . . . . . . . Kinetic 8 | . . . . . . . . . . . . 8 Secondary . | . . . . . . . . . . . . . Self-Inflicted Damage 33 | . . . . . . . . . 33 . . . Shots 2 | . . . . . . . . . 2 . . . Rammed . | . . . . . . . . . . . . . Targets Rammed . | . . . . . . . . . . . . . Kicked . | . . . . . . . . . . . . . Crushed . | . . . . . . . . . . . . . Highest Temperature 398 | 60 286 100 58 . . 11 14 90 6 18 . 398 Average Temperature 85 | 28 112 47 22 . . 6 6 21 3 7 . 162 Received Heat Transfer 651 | . 228 . 63 . . 72 90 . . . . 198 Effects 4 | . . . . . . . . . . . . 4 Shutdowns 1 | . . . . . . . . . . . . 1 Energy Bleed 1 | . . . . . . . . . . . . 1 Short Circuit 1 | . . . . . . . . . . . . 1 Damage (minor) 1 | . . . . . . . . . . . . 1 Siege Activations . | . . . . . . . . . . . . . Martial Activations . | . . . . . . . . . . . . . Shielding Activations . | . . . . . . . . . . . . . Robots Disrupted . | . . . . . . . . . . . . . Combat Hostiles . | . . . . . . . . . . . . . Robots Corrupted . | . . . . . . . . . . . . . Combat Hostiles . | . . . . . . . . . . . . . Parts Fried . | . . . . . . . . . . . . . Impact Corruptions . | . . . . . . . . . . . . . Robots Melted 1 | . 1 . . . . . . . . . . . Combat Hostiles 1 | . 1 . . . . . . . . . . . Parts Melted 11 | 1 5 . . . . . 1 1 1 2 . . Heat Transferred 4462 | 161 1548 149 125 . . . 518 370 222 555 . 814 Parts Sabotaged . | . . . . . . . . . . . . . Parts Stolen . | . . . . . . . . . . . . . Parts Stripped . | . . . . . . . . . . . . . Power Chain Reactions 2 | . . . 2 . . . . . . . . . Alert | -11 -10 -10 -9 -9 -9 -8 -8 -7 -7 -7 -7 -6 ------- Run | Yrd Mat Min Mat Min Exi Min Mat Fac Low Low Dat Pro Maximum Alert Level . | . . . . . . . . . . . . . Low Security (%) 100 | 100 100 100 100 100 . 100 100 100 . . . . Level 1 . | . . . . . . . . . . . . . Level 2 . | . . . . . . . . . . . . . Level 3 . | . . . . . . . . . . . . . Level 4 . | . . . . . . . . . . . . . Level 5 . | . . . . . . . . . . . . . High Security . | . . . . . . . . . . . . . Max Security . | . . . . . . . . . . . . . Peak Influence 186 | 5 90 70 95 60 . 186 70 14 . . . . Initial 44 | . 2 . . 18 . . 44 . . . . . Average 18 | . 26 11 10 18 . 101 10 1 . . . . Influence Increases 1418 | 10 177 70 169 90 . 236 190 36 160 140 . 140 Destroy 0b10 Robot/C 940 | . 140 60 40 80 . 180 80 . 140 100 . 120 Destroy 0b10 Robot/NC 55 | 10 . . 15 . . . 15 10 . 5 . . Destroy Leader 198 | . 30 10 24 10 . 30 34 . 20 20 . 20 Allied During Kill 2 | . . . . . . 2 . . . . . . Successful Hack 39 | . 7 . . . . . 7 25 . . . . Disable Machine 9 | . . . . . . . 9 . . . . . Destroy Structure 70 | . . . 15 . . 24 30 1 . . . . Lose Combat Pursuer 105 | . . . 75 . . . 15 . . 15 . . Influence Decreases 1418 | 5 182 70 114 145 . 100 326 36 160 140 . 140 Entered New Map 132 | . 3 . . 37 . . 92 . . . . . Time Decay 1086 | 5 159 70 84 88 . 80 204 36 130 130 . 100 Lost Part 150 | . 20 . 30 . . . 30 . 20 10 . 40 Lost Ally 50 | . . . . 20 . 20 . . 10 . . . Squads Dispatched 5 | . . . . . . . 3 2 . . . . Investigation . | . . . . . . . . . . . . . Extermination 1 | . . . . . . . . 1 . . . . Reinforcement 1 | . . . . . . . . 1 . . . . Assault . | . . . . . . . . . . . . . Garrison 3 | . . . . . . . 3 . . . . . Intercept . | . . . . . . . . . . . . . Searches Triggered . | . . . . . . . . . . . . . Construction Impeded . | . . . . . . . . . . . . . Haulers Reinforced . | . . . . . . . . . . . . . Active Scanning Responses . | . . . . . . . . . . . . . Cargo Convoy Interrupts . | . . . . . . . . . . . . . Stealth | -11 -10 -10 -9 -9 -9 -8 -8 -7 -7 -7 -7 -6 --------- Run | Yrd Mat Min Mat Min Exi Min Mat Fac Low Low Dat Pro Distress Signals 2 | . . . 1 . . . 1 . . . . . Communications Jammed . | . . . . . . . . . . . . . Distress Signals . | . . . . . . . . . . . . . Times Spotted 63 | . 12 2 13 . . 6 8 1 7 5 . 9 Peak Tracking Total 6 | . 4 2 5 1 . 6 4 1 4 4 . 4 Tactical Retreats 5 | . . . 3 . . . 1 . . 1 . . Traps | -11 -10 -10 -9 -9 -9 -8 -8 -7 -7 -7 -7 -6 ------- Run | Yrd Mat Min Mat Min Exi Min Mat Fac Low Low Dat Pro Traps Triggered 2 | . . . 1 . . . 1 . . . . . Indirectly . | . . . . . . . . . . . . . Trap Hack Attempts . | . . . . . . . . . . . . . Triggered . | . . . . . . . . . . . . . Disarmed . | . . . . . . . . . . . . . Reprogrammed 1 | . 1 . . . . . . . . . . . Reused . | . . . . . . . . . . . . . Traps Extracted . | . . . . . . . . . . . . . Installed . | . . . . . . . . . . . . . Triggered . | . . . . . . . . . . . . . Machines | -11 -10 -10 -9 -9 -9 -8 -8 -7 -7 -7 -7 -6 ---------- Run | Yrd Mat Min Mat Min Exi Min Mat Fac Low Low Dat Pro Machines Disabled 2 | . . . . . . . 1 . . 1 . . Max in Single Turn 1 | . . . . . . . 1 . . 1 . . Machines Repaired . | . . . . . . . . . . . . . Machines Dismantled . | . . . . . . . . . . . . . Machines Sabotaged . | . . . . . . . . . . . . . Overloaded Fab Kills . | . . . . . . . . . . . . . Hacking | -11 -10 -10 -9 -9 -9 -8 -8 -7 -7 -7 -7 -6 --------- Run | Yrd Mat Min Mat Min Exi Min Mat Fac Low Low Dat Pro Machines Accessed 15 | . 4 1 1 1 1 . 3 2 . . 2 . Terminals 9 | . 4 . . . . . 3 2 . . . . Fabricators . | . . . . . . . . . . . . . Repair Stations 1 | . . . 1 . . . . . . . . . Recycling Units . | . . . . . . . . . . . . . Scanalyzers . | . . . . . . . . . . . . . Garrison Access . | . . . . . . . . . . . . . Total Hacks 44 | . 11 1 2 1 1 . 6 7 . . 15 . Successful 32 | . 5 1 2 1 1 . 3 4 . . 15 . Failed 12 | . 6 . . . . . 3 3 . . . . Catastrophic 4 | . 3 . . . . . 1 . . . . . Database Lockouts . | . . . . . . . . . . . . . Manual 15 | . 4 . . . 1 . 4 6 . . . . Terminals 24 | . 11 . . . . . 6 7 . . . . Fabricators . | . . . . . . . . . . . . . Repair Stations 2 | . . . 2 . . . . . . . . . Recycling Units . | . . . . . . . . . . . . . Scanalyzers . | . . . . . . . . . . . . . Garrison Access . | . . . . . . . . . . . . . Terminal Hacks 29 | . 5 1 . 1 1 . 3 3 . . 15 . Part Schematic 8 | . . . . . . . . . . . 8 . Robot Schematic 4 | . . . . . . . . . . . 4 . Prototype ID Bank 4 | . 1 . . . . . . . . . 3 . Open Door 2 | . . 1 . 1 . . . . . . . . Level Access Points 1 | . . . . . . . . 1 . . . . Branch Access Points 2 | . 1 . . . . . 1 . . . . . Alert Level 3 | . 1 . . . . . 1 1 . . . . Unreport Threat 1 | . . . . . . . . 1 . . . . Locate Traps 1 | . 1 . . . . . . . . . . . Reprogram Traps 1 | . 1 . . . . . . . . . . . Zone Layout 1 | . . . . . . . 1 . . . . . Proto ID Catalog 1 | . . . . . 1 . . . . . . . Fabricator Hacks . | . . . . . . . . . . . . . Repair Station Hacks 2 | . . . 2 . . . . . . . . . Scan Component 1 | . . . 1 . . . . . . . . . Repair 1 | . . . 1 . . . . . . . . . Recycling Unit Hacks . | . . . . . . . . . . . . . Scanalyzer . | . . . . . . . . . . . . . Garrison Access Hacks . | . . . . . . . . . . . . . Unauthorized Hacks 1 | . . . . . . . . 1 . . . . Terminals 1 | . . . . . . . . 1 . . . . Assimilate 1 | . . . . . . . . 1 . . . . Fabricators . | . . . . . . . . . . . . . Repair Stations . | . . . . . . . . . . . . . Recycling Units . | . . . . . . . . . . . . . Scanalyzers . | . . . . . . . . . . . . . Garrison Access . | . . . . . . . . . . . . . Data Cores Recovered . | . . . . . . . . . . . . . Used . | . . . . . . . . . . . . . Hacking Detections 8 | . 3 . 1 . . . 3 1 . . . . Full Trace Events . | . . . . . . . . . . . . . Feedback Events . | . . . . . . . . . . . . . Feedback Blocked . | . . . . . . . . . . . . . Robot Schematics Acquired 4 | . . . . . . . . . . . 4 . Robots Built . | . . . . . . . . . . . . . Authchips . | . . . . . . . . . . . . . Time . | . . . . . . . . . . . . . Total Robot Build Rating . | . . . . . . . . . . . . . Part Schematics Acquired 8 | . . . . . . . . . . . 8 . Parts Built . | . . . . . . . . . . . . . Authchips . | . . . . . . . . . . . . . Time . | . . . . . . . . . . . . . Total Part Build Rating . | . . . . . . . . . . . . . Parts Repaired 1 | . . . 1 . . . . . . . . . Time 26 | . . . 26 . . . . . . . . . Parts Recycled . | . . . . . . . . . . . . . Recycled Matter . | . . . . . . . . . . . . . Retrieved Matter . | . . . . . . . . . . . . . Retrieved Components . | . . . . . . . . . . . . . Parts Scanalyzed . | . . . . . . . . . . . . . Part Schematics Acquired . | . . . . . . . . . . . . . Parts Damaged . | . . . . . . . . . . . . . Bothacking | -11 -10 -10 -9 -9 -9 -8 -8 -7 -7 -7 -7 -6 ------------ Run | Yrd Mat Min Mat Min Exi Min Mat Fac Low Low Dat Pro Used RIF Installer . | . . . . . . . . . . . . . Robots Hacked . | . . . . . . . . . . . . . Non-combat . | . . . . . . . . . . . . . Combat . | . . . . . . . . . . . . . Robot Hacks Applied . | . . . . . . . . . . . . . Relay Couplers Released . | . . . . . . . . . . . . . Fabnet Peak Effective % . | . . . . . . . . . . . . . Robots Rewired . | . . . . . . . . . . . . . Allies Hacked . | . . . . . . . . . . . . . Hacks Repelled . | . . . . . . . . . . . . . Allies | -11 -10 -10 -9 -9 -9 -8 -8 -7 -7 -7 -7 -6 -------- Run | Yrd Mat Min Mat Min Exi Min Mat Fac Low Low Dat Pro Total Allies 1 | . . . . . . . . 1 . . . . Largest Group 1 | . . . . . . . . 1 1 . . . Highest-Rated Group 26 | . . . . . . . . 26 26 . . . Highest-Rated Ally 26 | . . . . . . . . 26 26 . . . Total Orders 11 | . . . . 5 . 4 . 1 1 . . . ROAM 1 | . . . . . . . . . 1 . . . EXPLORE 10 | . . . . 5 . 4 . 1 . . . . Ally Attacks 55 | . . . . 30 . 22 . 3 . . . . Total Damage 215 | . . . . 113 . 89 . 13 . . . . Kills 8 | . . . . 4 . 4 . . . . . . Allies Corrupted 2 | . . . . 1 . 1 . . . . . . Allies Melted . | . . . . . . . . . . . . . Intel | -11 -10 -10 -9 -9 -9 -8 -8 -7 -7 -7 -7 -6 ------- Run | Yrd Mat Min Mat Min Exi Min Mat Fac Low Low Dat Pro Active Infowar (turns) 4881 | . 520 440 501 184 379 219 823 328 716 562 124 85 Sensors 2163 | . . . . . . . 348 328 716 562 124 85 Terrain 2088 | . 330 . 501 184 379 219 475 . . . . . Seismic 1152 | . 190 440 501 21 . . . . . . . . Robot Analysis Total . | . . . . . . . . . . . . . Derelict Logs Recovered 3 | . . 2 . 1 . . . . . . . . Drone Launches 10 | . . . . 5 . 4 . 1 . . . . Drone Recoveries 7 | . . . . 4 . 3 . . . . . . Exploration | -11 -10 -10 -9 -9 -9 -8 -8 -7 -7 -7 -7 -6 ------------- Run | Yrd Mat Min Mat Min Exi Min Mat Fac Low Low Dat Pro Turns Passed 6333 | 74 530 440 501 184 379 219 902 328 716 562 124 1374 Spaces Moved 3403 | 59 402 352 285 151 320 141 446 189 434 314 81 229 Core 18 | 18 . . . . . . . . . . . . Treads 4 | . . . . . . . . . . . . 4 Legs 200 | . . . . . . . . . . . . 200 Wheels 3181 | 41 402 352 285 151 320 141 446 189 434 314 81 25 Hover . | . . . . . . . . . . . . . Flight . | . . . . . . . . . . . . . Fastest Speed 50 | 50 100 100 123 116 116 116 110 110 110 155 155 155 Average Speed 149 | 84 100 102 125 116 116 116 113 110 143 155 155 556 Slowest Speed 610 | 100 100 130 175 116 116 116 125 110 155 155 155 610 Overloaded Moves . | . . . . . . . . . . . . . Propulsion Burnouts . | . . . . . . . . . . . . . Robots Hopped . | . . . . . . . . . . . . . Potential Cave-ins . | . . . . . . . . . . . . . Cave-ins Triggered . | . . . . . . . . . . . . . Exploration Rate (%) 51 | 3 63 64 31 93 70 90 30 23 56 51 70 20 Regions Visited 12 Branch Regions 8 Pre-discovered Areas . | . . . . . . . . . . . . . Known Exits Taken 7 | . 1 . 1 . . . 1 1 1 1 1 . Unknown Exits Taken 5 | 1 . 1 . 1 1 1 . . . . . . Scrap Searched 5 | . . 2 . 1 . 1 . . . 1 . . Spaces Dug 11 | . . . 8 . . . 1 1 . 1 . . Terrain Destroyed 148 | . . . 13 . . 44 33 1 43 10 . 4 Melee . | . . . . . . . . . . . . . Projectile 24 | . . . 8 . . . 4 1 3 4 . 4 AOE 124 | . . . 5 . . 44 29 . 40 6 . . Terrain Rammed . | . . . . . . . . . . . . . Walls Destroyed . | . . . . . . . . . . . . . Machines Disabled . | . . . . . . . . . . . . . Actions | -11 -10 -10 -9 -9 -9 -8 -8 -7 -7 -7 -7 -6 --------- Run | Yrd Mat Min Mat Min Exi Min Mat Fac Low Low Dat Pro Total 4375 | 76 478 425 393 160 327 189 802 296 512 362 80 275 Wait 700 | . 37 65 77 2 7 35 301 89 62 24 . 1 Move 3391 | 58 401 351 284 150 319 140 445 188 433 313 80 229 Hop . | . . . . . . . . . . . . . Pick Up 52 | 9 8 1 7 2 1 1 12 2 3 5 . 1 Fast Attach 2 | 1 1 . . . . . . . . . . . Attach 41 | 5 3 . 4 3 . . 10 3 1 3 . 9 Detach 4 | . . . . . . 1 2 . 1 . . . Swap 15 | . . 2 1 1 . . 5 . 2 4 . . Drop 21 | . 2 2 1 2 . 3 3 5 1 . . 2 Fire 145 | 3 26 4 19 . . 9 21 9 8 13 . 33 Melee . | . . . . . . . . . . . . . Ram . | . . . . . . . . . . . . . Kick . | . . . . . . . . . . . . . Crush . | . . . . . . . . . . . . . Escape Stasis . | . . . . . . . . . . . . . Rewire . | . . . . . . . . . . . . . Trap . | . . . . . . . . . . . . . Miscellaneous 4 | . . . . . . . 3 . 1 . . . Route ------- -11/Scrapyard -10/Materials (discovered 5 exits: *Mat x2 / *Min x2 / [Sub]) -10/Mines -9/Materials -9/Mines (discovered 3 exits: *Mat x2 / *Exi) -9/Exiles -8/Mines -8/Materials -7/Factory (discovered 5 exits: *Fac x4 / *Low) -7/Lower Caves -7/Lower Caves -7/Data Miner -6/Proximity Caves History --------- Turn | Location | Event 12 | -11/Scrapyard | Discovered new exit (range 16) 75 | -11/Scrapyard | Entered Materials 304 | -10/Materials | Build established: Mutant 312 | -10/Materials | Discovered new exit (range 16) 411 | -10/Materials | Identified exit to Mines 530 | -10/Materials | Discovered new exit (range 8) 533 | -10/Materials | Discovered new exit (range 14) 605 | -10/Materials | Entered Mines 643 | -10/Mines | Learned Materials terminal intel 658 | -10/Mines | Learned 2 Materials zone layouts 814 | -10/Mines | Met a Derelict who couldn't figure out how to use a Trap Extractor 968 | -10/Mines | Assembled infested the area 973 | -10/Mines | Assisted by a Guerilla fighting off Assembled 997 | -10/Mines | Discovered new exit (range 4) 1045 | -10/Mines | Entered Materials 1045 | -9/Materials | Evolved 2 slots: Propulsion x1, Utility x1 1046 | -9/Materials | Identified exit to Mines 1047 | -9/Materials | Loaded intel: 12 terminal locations 1349 | -9/Materials | Repaired Com. Wheel 1546 | -9/Materials | Entered Mines 1559 | -9/Mines | Found the Drone Emporium 1559 | -9/Mines | Lost 3 parts (2n1w) 1566 | -9/Mines | Found Prototype Device 1567 | -9/Mines | Identified Thief Drone Bay 1583 | -9/Mines | Discovered new exit (range 15) 1593 | -9/Mines | Learned 2 Materials zone layouts 1608 | -9/Mines | Discovered new exit (range 57) 1723 | -9/Mines | Deemed a non-threat by the Exiles lab entrance 1724 | -9/Mines | Discovered new exit (range 5) 1730 | -9/Mines | Entered Exiles 1765 | -9/Exiles | Met 8R-AWN 1782 | -9/Exiles | Met EX-HEX 1824 | -9/Exiles | Met EX-DEC 1874 | -9/Exiles | Met EX-BIN 1893 | -9/Exiles | Aligned with FarCom system 1894 | -9/Exiles | Given EX-Vault access code 1922 | -9/Exiles | Opened EX-Vault 1930 | -9/Exiles | Found XL Autogun Array 1955 | -9/Exiles | Warned to stay clear of 0b10 Research branches 1970 | -9/Exiles | Exiles lab attacked by MAIN.C 2089 | -9/Exiles | Discovered new exit (range 12) 2109 | -9/Exiles | Left Exiles lab with XL Autogun Array 2109 | -9/Exiles | Entered Mines 2259 | -8/Mines | Discovered new exit (range 33) 2328 | -8/Mines | Entered Materials 2328 | -8/Materials | Evolved 2 slots: Propulsion x1, Utility x1 2669 | -8/Materials | Garrison activated, responded to threat 2757 | -8/Materials | Lost 3 parts (1p1n1w) 3169 | -8/Materials | Build established: Skirmisher 3216 | -8/Materials | Discovered new exit (range 11) 3228 | -8/Materials | Identified exit to Factory 3230 | -8/Materials | Entered Factory 3230 | -7/Factory | Evolved 2 slots: Propulsion x1, Utility x1 3493 | -7/Factory | Identified exit to Factory 3504 | -7/Factory | Discovered new exit (range 5) 3508 | -7/Factory | Identified exit to Lower Caves 3558 | -7/Factory | Entered Lower Caves 3558 | -7/Lower Caves | Accompanied by 1 ally 3853 | -7/Lower Caves | Found DRS Beacon 3865 | -7/Lower Caves | Activated DRS Beacon 4000 | -7/Lower Caves | Build established: Mutant 4237 | -7/Lower Caves | Discovered new exit (range 15) 4256 | -7/Lower Caves | Identified exit to Lower Caves 4274 | -7/Lower Caves | Entered another Lower Caves area 4283 | -7/Lower Caves | P-60 Hacker assimilated allied H6-IYL(S) 4630 | -7/Lower Caves | Encountered a Warlord checkpoint 4718 | -7/Lower Caves | Discovered new exit (range 15) 4740 | -7/Lower Caves | Identified exit to Data Miner 4798 | -7/Lower Caves | Found Alien Artifact 4799 | -7/Lower Caves | Identified Core Expander 4799 | -7/Lower Caves | Installed Core Expander, added new Utility slot 4836 | -7/Lower Caves | Entered Data Miner 4836 | -7/Data Miner | Discovered new exit (range 6) 4866 | -7/Data Miner | Met Data Miner 4926 | -7/Data Miner | Received God Mode back door access code from Data Miner 4959 | -7/Data Miner | Identified exit to Proximity Caves 4960 | -7/Data Miner | Entered Proximity Caves 5067 | -6/Proximity Caves | Lost 5 parts (1p2n1u1w) 6244 | -6/Proximity Caves | Lost 3 parts (1p1u1w) 6328 | -6/Proximity Caves | Core integrity fell below 50% 6334 | -6/Proximity Caves | Self-destructed Last Messages --------------- Slug penetrates Wall. Penetrated by Slug. Gauss Rifle fries itself beyond repair. Penetrated by Slug. Gauss Rifle fries itself beyond repair. Flexi-carbon Leg fries itself beyond repair. H-66 Slayer destroyed. Acquired 60 matter. Acquired 6 matter. Acquired 25 matter. Acquired 9 matter. Adv. Assault Cannon destroyed. Carbon-fiber Leg destroyed. Deuterium Engine destroyed. Destroyed Lgt. Nuclear Core. S-27 Virus destroyed. Destroyed VTOL Module. Hvy. Ion Cannon destroyed. Propulsion Shielding destroyed. Imp. Hover Unit destroyed. Map ----- +----------------------------------------------------+ | ?????????????????????????????????????????????????? | | ?????????????????????????????????????????????????? | | ?????????????????????????????????????????????????? | | ?????????????????????????????????????????????????? | | ?????????????????????????????????????????????????? | | ?????????????????????????????????????????????????? | | ?????????????????????????????????????????????????? | | #????????????????????????????????????????????????? | | #????????????????????????????????????????????????? | | ??????????# ????????????????????????????????????? | | ?????????# #???????????????????????????????????? | | ????????# #???????????????????????????????????? | | ???????# #??????????????????? ???????????????? | | ????### #??? ???????????## ? ?????????????? | | ??## #???? ?????????# ? ?????????????? | | ?## #???# ???????# ? ??????????????? | | ?? #### ??????? ? ???????????????? | | ?? ## ??????## ???????????????? | | ??# ???????# ????????????????? | | ### ???????? ?????????????????? | | ## ????????? ??????????????????? | | #??# #???###????# ???#???????????????? | | #??# #?### ###### #?? #???????????????? | | #???# ###; ##;## ## #???????????????? | | ## #???# ##% %s!s #???????????????? | | #" %##### @=s #???????????????? | | " ###### #???????????????? | | = #????? #???????????????? | | ## ### ?????????????? | | # ##### ##?? ???????????? | | ### #???## #???# ?????????? | | ??# ##?#### ##???? ####%????????? | | ??###### ####????? ####????????????? | | ?## ## ##????????? #???????????????? | | ## ###?????????? #???????????????? | | #???????????? #???????????????? | | ## #????????????? #???????????????? | | ## ##?????????????# #???????????????? | | ### #???????????????# ? ? ????????????????? | | ####?# #????????????????#????????????????????? | | ##????####?????????????????????????????????????? | | #??????????????????????????????????????????????? | | ###??????????????????????????????????????????????? | | ?????????????????????????????????????????????????? | | ?????????????????????????????????????????????????? | | ?????????????????????????????????????????????????? | | ?????????????????????????????????????????????????? | | ?????????????????????????????????????????????????? | | ?????????????????????????????????????????????????? | | ?????????????????????????????????????????????????? | +----------------------------------------------------+ Best States ------------- Heat Dissipation 48 Energy Generation 19 Energy Capacity 315 Matter Stores 300 Matter Capacity 300 Sight Range 16 Robot Scan Range 15 Terrain Scan Range 16 Terrain Scan Density 210 Armor Coverage 150 Resistance: KI 20 Resistance: TH 20 Resistance: EX 20 Resistance: EM 20 Resistance: I 20 Resistance: S 20 Resistance: P 20 Propulsion Shielding 33 Evasion (%) 50 Recoil Reduction 1 Offensive Hacking 10 Item Schematics ----------------- Combat Drone Bay | -7/Data Miner | Free Lgt. Regenerative Plating | -7/Data Miner | Free Biomechanical Wings | -7/Data Miner | Free Thermal Defense Suite | -7/Data Miner | Free Cld. Plasma Cannon | -7/Data Miner | Free Nuclear Pulse Array | -7/Data Miner | Free KE Penetrator | -7/Data Miner | Free Imp. Kinecellerator | -7/Data Miner | Free Robot Schematics ------------------ R-10 Processor | -7/Data Miner | Free Y-54 Guardian | -7/Data Miner | Free G-47 Trooper | -7/Data Miner | Free B-48 Gladiator | -7/Data Miner | Free Fabricated ------------ Nothing Repaired ---------- Com. Wheel | 23% | -9/Materials Alien Tech Used ----------------- Core Expander Achievements -------------- None Challenges ------------ None Game ------ Seed CompactDecoyMatterbank Manual? 0 Play Time 00:44:19 Cumulative 71.7 hours Start 2025.06.30 @ 12:52:37 End 2025.06.30 @ 14:59:19 Sessions 3 Manual Loads 0 Difficulty Adventurer Special Mode None Game No. 68 Rogue 0 Adventurer 68 Explorer 0 Win Type - Total 1 Types 1/0/0/0/0/0/0/0/0/0 Lore% 46 Gallery% 44 Achievement% 43 Wizard Run 0 Options --------- Layout 1 ASCII 0 Keyboard 0 Movement Mouse Keybinds 0 Fullscreen 1 Font 32/SmallcapsGlow Map View 50x40 Zoom Use 1% Tactical HUD 0 Map Filters NONE Filters NONE Steam 1 RUN: 6a047faa-6654-4806-a19e-a7cab5682a14